bitfinex-derivatives/quotes_SOLF0:USTF0_20250411
["timestamp","ask_amount","ask_price","bid_price","bid_amount"]
[1744357711248,32.48196243,116.73,116.71,8.574]
[1744357711843,41.05456243,116.73,116.7,17.79298598]
[1744357712043,41.05456243,116.73,116.71,9.15783697]
[1744357712338,32.48196243,116.73,116.71,9.15783697]
[1744357712545,41.05456243,116.73,116.71,8.5739]
[1744357712848,41.05456243,116.73,116.7,9.21858598]
[1744357713045,8.5737,116.72,116.7,0.06074901]
[1744357714950,17.73153697,116.72,116.7,0.06074901]
[1744357718456,8.574,116.71,116.7,0.06074901]
[1744357718751,9.15783697,116.71,116.67,9.15783697]
[1744357718949,41.57783697,116.7,116.66,11.42413697]
[1744357719149,32.42,116.69,116.66,20.00123697]
[1744357719751,40.9956,116.69,116.66,20.00123697]
[1744357719953,41.05878331,116.69,116.66,17.79335527]
[1744357720149,41.64102028,116.69,116.66,0.0584183]
[1744357720352,9.15783697,116.68,116.66,0.0584183]
[1744357720955,8.5766,116.68,116.66,0.0584183]
[1744357721558,8.577,116.67,116.66,0.0584183]
[1744357724457,17.73483697,116.67,116.66,0.0584183]
[1744357725853,32.48318331,116.69,116.66,9.21625527]
[1744357726660,32.48318331,116.69,116.67,8.5766]
[1744357729764,32.48318331,116.69,116.68,17.73403697]
[1744357730154,0.06318331,116.69,116.68,17.73403697]
[1744357733259,0.06318331,116.69,116.68,8.5762]
[1744357733459,0.06318331,116.69,116.68,17.73403697]
[1744357733666,0.06318331,116.69,116.68,29.80597756]
[1744357734055,0.06318331,116.69,116.68,29.80602846]
[1744357734260,32.68,116.72,116.7,8.5746]
[1744357735361,41.30805501,116.72,116.7,8.62878341]
[1744357735861,32.73475501,116.72,116.7,17.78662038]
[1744357736063,32.73475501,116.72,116.71,8.574]
[1744357736265,32.73475501,116.72,116.7,9.21202038]
[1744357736467,32.73475501,116.72,116.7,17.78642038]
[1744357737269,32.73475501,116.72,116.71,3.90965593]
[1744357738069,32.73475501,116.72,116.71,21.6414929]
[1744357738971,0.05475501,116.72,116.71,21.6414929]
[1744357739771,0.05475501,116.72,116.71,29.83020814]
[1744357740873,32.68,116.75,116.71,21.25620814]
[1744357741169,32.68,116.77,116.74,9.15783697]
[1744357741470,9.15783697,116.79,116.75,21.25493942]
[1744357741670,8.5693,116.78,116.75,17.72843697]
[1744357741871,8.5693,116.78,116.76,3.91110703]
[1744357742075,25.33126118,116.78,116.75,17.79317163]
[1744357742371,25.33126118,116.78,116.76,3.90981467]
[1744357742578,25.33126118,116.78,116.75,17.79317163]
[1744357742870,34.48909815,116.78,116.75,17.79317163]
[1744357743071,25.91979815,116.78,116.75,17.79317163]
[1744357743276,25.91979815,116.78,116.76,8.5702]
[1744357743572,16.76196118,116.78,116.76,8.5702]
[1744357743772,16.76196118,116.78,116.75,17.79327163]
[1744357744780,32.66,116.77,116.75,8.63543466]
[1744357744985,41.81783697,116.77,116.75,0.06473466]
[1744357745277,9.15783697,116.76,116.75,0.06473466]
[1744357745482,17.72823697,116.76,116.75,0.06473466]
[1744357745781,9.15783697,116.76,116.75,0.06473466]
[1744357746585,17.72823697,116.76,116.75,0.06473466]
[1744357753580,45.8128,116.77,116.75,0.06473466]
[1744357753783,41.81783697,116.77,116.75,0.06473466]
[1744357754284,50.38783697,116.77,116.75,0.06473466]
[1744357754586,9.15783697,116.76,116.75,0.06473466]
[1744357754787,17.72823697,116.76,116.75,0.06473466]
[1744357755888,8.5721,116.74,116.71,8.5738]
[1744357756090,50.24993697,116.74,116.72,3.90536509]
[1744357756289,50.24993697,116.74,116.71,8.5738]
[1744357757084,9.15783697,116.73,116.71,0.05403685]
[1744357757288,9.15783697,116.72,116.71,0.05403685]
[1744357757486,9.15783697,116.72,116.66,9.15783697]
[1744357757687,9.15783697,116.7,116.67,20.65796256]
[1744357757884,50.25243697,116.71,116.68,12.08146256]
[1744357758086,50.25243697,116.71,116.69,3.90610959]
[1744357758284,50.25243697,116.71,116.68,8.5759]
[1744357758486,50.25243697,116.71,116.69,3.90608524]
[1744357758689,50.31429715,116.71,116.68,8.6330278]
[1744357759892,9.15783697,116.7,116.68,0.0571278]
[1744357761395,17.73293697,116.7,116.68,0.0571278]
[1744357762887,8.5755,116.69,116.68,0.0571278]
[1744357763094,17.73333697,116.69,116.68,0.0571278]
[1744357765293,8.5774,116.67,116.63,9.15783697]
[1744357765492,41.67783697,116.66,116.64,12.07966877]
[1744357765692,41.67783697,116.66,116.62,9.15783697]
[1744357765893,9.15783697,116.65,116.63,12.08018131]
[1744357766091,9.15783697,116.65,116.61,9.15783697]
[1744357766287,9.15783697,116.65,116.62,12.08074885]
[1744357766493,0.05772346,116.64,116.62,0.06342808]
[1744357766793,8.63692346,116.64,116.62,0.06342808]
[1744357767689,17.79476043,116.64,116.62,0.06342808]
[1744357767990,17.73773697,116.63,116.62,0.06342808]
[1744357768188,50.25773697,116.63,116.62,0.06342808]
[1744357769592,41.67783697,116.63,116.56,32.52]
[1744357769792,9.15783697,116.61,116.57,13.05980994]
[1744357769986,41.1223,116.6,116.58,3.90197297]
[1744357770291,41.1223,116.6,116.57,17.74163697]
[1744357770696,41.18413891,116.6,116.57,17.80296846]
[1744357771499,32.60183891,116.6,116.58,8.5835]
[1744357771698,32.60183891,116.6,116.58,17.74133697]
[1744357771890,32.60183891,116.6,116.58,8.5835]
[1744357773400,32.60183891,116.6,116.58,17.74133697]
[1744357778905,41.18393891,116.6,116.57,17.80316846]
[1744357779502,41.18393891,116.6,116.58,8.5835]
[1744357780001,8.5828,116.59,116.57,9.21916846]
[1744357780299,8.5828,116.59,116.57,0.06133149]
[1744357781194,17.74063697,116.59,116.57,0.06133149]
[1744357782400,8.5828,116.59,116.57,0.06133149]
[1744357782605,32.60183891,116.6,116.58,9.15783697]
[1744357783106,32.60183891,116.6,116.58,17.74103697]
[1744357783908,32.60183891,116.6,116.58,8.5832]
[1744357786800,41.75967588,116.6,116.57,0.06133149]
[1744357786999,9.15783697,116.59,116.57,0.06133149]
[1744357787305,17.74143697,116.58,116.57,0.06133149]
[1744357788205,17.74093697,116.59,116.57,0.06133149]
[1744357789010,17.74093697,116.59,116.57,8.64563149]
[1744357789206,41.18433891,116.6,116.57,8.64563149]
[1744357789405,50.34217588,116.6,116.57,17.80346846]
[1744357790012,50.34217588,116.6,116.57,8.64563149]
[1744357792210,8.5829,116.59,116.57,8.64563149]
[1744357792411,41.75967588,116.6,116.57,8.64563149]
[1744357793110,50.34237588,116.6,116.57,8.64563149]
[1744357793410,32.60183891,116.6,116.58,8.5832]
[1744357794311,50.34237588,116.6,116.57,8.64533149]
[1744357794811,50.34237588,116.6,116.57,17.80316846]
[1744357795312,41.18453891,116.6,116.57,17.80316846]
[1744357797113,41.18453891,116.6,116.58,8.5836]
[1744357797301,32.60183891,116.6,116.58,8.5836]
[1744357800720,41.75967588,116.6,116.58,8.5836]
[1744357802119,50.34187588,116.6,116.58,8.5836]
[1744357804828,41.75967588,116.6,116.58,8.5836]
[1744357805123,32.60183891,116.6,116.58,8.5836]
[1744357805826,50.34177588,116.6,116.58,8.5836]
[1744357806721,41.18393891,116.6,116.58,8.5836]
[1744357807625,50.34177588,116.6,116.58,8.5836]
[1744357808327,50.34177588,116.6,116.59,3.91704808]
[1744357809027,41.75967588,116.6,116.59,3.91704808]
[1744357809325,41.75967588,116.6,116.59,12.12300062]
[1744357810027,41.75967588,116.6,116.57,8.64533149]
[1744357810226,9.15783697,116.59,116.58,12.12859542]
[1744357810726,41.75967588,116.6,116.58,12.13703806]
[1744357810919,41.75967588,116.6,116.57,8.64533149]
[1744357811115,41.75967588,116.6,116.58,12.14148744]
[1744357811324,8.583,116.59,116.57,8.64533149]
[1744357811524,41.75967588,116.6,116.58,12.14887256]
[1744357811721,41.75967588,116.6,116.57,8.64533149]
[1744357811921,41.75967588,116.6,116.58,12.14887]
[1744357812120,50.34207588,116.6,116.57,8.64533149]
[1744357812317,50.34207588,116.6,116.58,12.14887258]
[1744357812526,50.34207588,116.6,116.59,3.9281504]
[1744357814427,50.34207588,116.6,116.59,3.93124902]
[1744357814823,50.34207588,116.6,116.59,12.1589755]
[1744357815925,50.20207588,116.6,116.59,12.1589755]
[1744357816126,50.20207588,116.6,116.59,12.1606911]
[1744357816430,17.80207588,116.6,116.59,12.1606911]
[1744357816729,49.92207588,116.6,116.59,12.1606911]
[1744357817831,49.92207588,116.6,116.59,12.15974997]
[1744357820429,40.76423891,116.6,116.59,12.15974997]
[1744357821427,49.92207588,116.6,116.59,12.15974997]
[1744357823131,49.92207588,116.6,116.59,3.93166022]
[1744357823434,49.92207588,116.6,116.59,12.15975632]
[1744357824428,49.92207588,116.6,116.59,12.15966505]
[1744357825030,40.76423891,116.6,116.59,12.15966505]
[1744357825236,32.18183891,116.6,116.59,12.15966505]
[1744357827637,40.76393891,116.6,116.59,12.15966505]
[1744357832242,40.76393891,116.6,116.59,12.16100754]
[1744357832443,32.18183891,116.6,116.59,12.16100754]
[1744357833341,0.06183891,116.6,116.59,29.90164451]
[1744357833540,33.56,116.64,116.59,21.31884451]
[1744357833839,33.56,116.65,116.63,9.15783697]
[1744357834045,33.56,116.65,116.64,29.89804451]
[1744357834346,33.56,116.65,116.64,20.74020754]
[1744357834647,33.56,116.65,116.64,12.16100754]
[1744357837143,51.29623697,116.65,116.64,3.93291144]
[1744357837645,51.29623697,116.65,116.63,0.06274507]
[1744357837846,42.71783697,116.65,116.63,0.06274507]
[1744357839247,33.56,116.65,116.63,0.06274507]
[1744357839546,42.1385,116.65,116.63,0.06274507]
[1744357841947,8.5792,116.64,116.63,0.06274507]
[1744357842146,33.56,116.65,116.63,3.97410587]
[1744357842344,42.71783697,116.65,116.63,0.06274507]
[1744357842544,51.29663697,116.65,116.63,0.06274507]
[1744357842749,36.05526844,116.66,116.63,9.22058204]
[1744357842951,36.05526844,116.66,116.64,9.15783697]
[1744357843149,36.05526844,116.66,116.64,17.73653697]
[1744357843839,36.05526844,116.66,116.63,17.80018204]
[1744357844039,33.54,116.65,116.63,17.80018204]
[1744357845053,36.05526844,116.66,116.64,9.15783697]
[1744357845249,36.05526844,116.66,116.65,21.24174979]
[1744357845451,36.05526844,116.66,116.65,13.06492127]
[1744357845847,36.05526844,116.66,116.65,12.4854843]
[1744357846150,36.05526844,116.66,116.65,12.07744999]
[1744357846356,36.05526844,116.66,116.64,17.73653697]
[1744357846551,36.05526844,116.66,116.64,8.5787]
[1744357847556,44.63306844,116.66,116.63,8.64244507]
[1744357847860,33.54,116.65,116.63,0.06274507]
[1744357848061,42.69783697,116.65,116.63,0.06274507]
[1744357848253,51.27693697,116.65,116.63,0.06274507]
[1744357850647,8.5792,116.64,116.63,0.06274507]
[1744357850852,42.69783697,116.65,116.63,0.06274507]
[1744357851361,51.27673697,116.65,116.63,0.06274507]
[1744357852462,33.54,116.65,116.63,8.64224507]
[1744357852764,33.54,116.65,116.63,17.80008204]
[1744357855168,42.1185,116.65,116.63,0.06274507]
[1744357856263,42.1185,116.65,116.63,8.64254507]
[1744357856465,33.54,116.65,116.63,17.80038204]
[1744357857466,42.1186,116.65,116.63,17.80038204]
[1744357858963,42.1186,116.65,116.63,8.64254507]
[1744357860270,33.54,116.65,116.63,17.80038204]
[1744357861672,36.05526844,116.66,116.64,9.15783697]
[1744357861869,36.05526844,116.66,116.65,9.15783697]
[1744357862265,36.05526844,116.66,116.65,17.73623697]
[1744357862463,36.05526844,116.66,116.64,9.15783697]
[1744357862869,36.05526844,116.66,116.65,8.5784]
[1744357868572,36.05526844,116.66,116.65,20.65220884]
[1744357868975,36.05526844,116.66,116.65,29.81004581]
[1744357870066,36.05526844,116.66,116.65,20.65220884]
[1744357870266,36.05526844,116.66,116.65,20.6533351]
[1744357870669,36.05526844,116.66,116.65,12.0749351]
[1744357870869,36.05526844,116.66,116.64,8.5788]
[1744357871376,36.05526844,116.66,116.65,3.90543828]
[1744357871674,36.05526844,116.66,116.64,8.5788]
[1744357873377,36.05526844,116.66,116.65,3.90660636]
[1744357875479,45.21310541,116.66,116.63,0.06274507]
[1744357875777,42.41783697,116.65,116.63,0.06274507]
[1744357876074,50.99673697,116.65,116.63,0.06274507]
[1744357876377,50.99673697,116.65,116.64,3.90665908]
[1744357876775,41.8389,116.65,116.64,3.90665908]
[1744357877078,41.8389,116.65,116.64,12.08569733]
[1744357877277,33.26,116.65,116.64,12.08569733]
[1744357877478,33.26,116.65,116.64,21.2465079]
[1744357877880,33.26,116.65,116.64,29.8257079]
[1744357879281,36.05526844,116.66,116.65,8.5784]
[1744357879485,36.05526844,116.66,116.65,29.83538805]
[1744357882077,36.05526844,116.66,116.65,20.67755108]
[1744357882883,36.05526844,116.66,116.65,20.68175072]
[1744357883282,36.05526844,116.66,116.65,12.10335072]
[1744357884685,36.05526844,116.66,116.65,12.10493997]
[1744357885279,36.05526844,116.66,116.65,20.68333997]
[1744357885483,36.05526844,116.66,116.65,12.10493997]
[1744357886482,36.05526844,116.66,116.65,20.68426376]
[1744357888380,36.05526844,116.66,116.65,20.68569392]
[1744357888583,36.05526844,116.66,116.65,29.84353089]
[1744357890084,36.05526844,116.66,116.65,29.84293071]
[1744357890687,36.05526844,116.66,116.65,12.10669374]
[1744357891475,36.05526844,116.66,116.65,20.68509374]
[1744357891886,36.05526844,116.66,116.65,20.68738798]
[1744357893384,36.05526844,116.66,116.65,29.84522495]
[1744357893784,36.05526844,116.66,116.65,29.84451019]
[1744357894889,36.05526844,116.66,116.65,12.10827322]
[1744357895389,36.05526844,116.66,116.65,12.10918479]
[1744357895593,44.63296844,116.66,116.65,12.10918479]
[1744357896492,53.79080541,116.66,116.65,12.10918479]
[1744357897687,44.63296844,116.66,116.65,12.10918479]
[1744357897991,68.95526844,116.66,116.65,12.10918479]
[1744357899191,68.95526844,116.66,116.65,12.1150347]
[1744357900794,77.53296844,116.66,116.65,12.1150347]
[1744357903195,77.53296844,116.66,116.65,3.9171553]
[1744357903396,77.53296844,116.66,116.65,12.11266506]
[1744357903696,68.95526844,116.66,116.65,12.11266506]
[1744357904196,77.53296844,116.66,116.65,12.11266506]
[1744357905700,86.69080541,116.66,116.65,12.11266506]
[1744357905996,8.5792,116.64,116.63,0.06274507]
[1744357906193,17.73703697,116.64,116.63,12.18267496]
[1744357906386,17.73703697,116.64,116.63,12.1826745]
[1744357906590,8.5792,116.64,116.63,12.1826745]
[1744357906795,17.73703697,116.64,116.63,3.98149748]
[1744357908697,17.73703697,116.64,116.63,0.06274507]
[1744357908899,8.5816,116.61,116.58,9.15783697]
[1744357909104,41.4816,116.61,116.59,12.11416631]
[1744357909403,41.4816,116.61,116.6,12.11416631]
[1744357910003,41.4816,116.61,116.6,12.11021239]
[1744357911905,41.4816,116.61,116.6,12.10354174]
[1744357912511,32.9,116.61,116.6,12.10354174]
[1744357913308,32.9,116.61,116.6,3.91690373]
[1744357913508,32.9,116.61,116.59,8.64458609]
[1744357913807,41.4814,116.61,116.59,0.06188609]
[1744357916012,41.4814,116.61,116.59,9.21972306]
[1744357917510,32.9,116.61,116.6,3.90485024]
[1744357919014,41.4814,116.61,116.6,3.90485024]
[1744357919414,41.4814,116.61,116.59,17.80252306]
[1744357920314,41.4814,116.61,116.6,3.90335618]
[1744357920610,32.9,116.61,116.6,9.15783697]
[1744357920915,32.9,116.61,116.6,29.81094644]
[1744357921218,32.9,116.61,116.6,21.64317902]
[1744357921518,32.9,116.61,116.6,29.80646926]
[1744357922013,32.9,116.61,116.6,21.64317902]
[1744357922215,41.4815,116.61,116.6,9.15783697]
[1744357922415,32.9,116.61,116.6,9.15783697]
[1744357923014,32.9,116.61,116.59,8.64468609]
[1744357923015,32.9,116.61,116.59,17.80252306]
[1744357923209,32.9,116.61,116.6,9.15783697]
[1744357923410,41.4814,116.61,116.6,9.15783697]
[1744357925218,32.9,116.61,116.6,9.15783697]
[1744357925415,32.9,116.61,116.59,0.06188609]
[1744357925609,0.06405013,116.62,116.6,9.15783697]
[1744357925804,0.06405013,116.62,116.61,29.80129062]
[1744357926109,712.0,116.65,116.61,21.21989062]
[1744357926312,712.0,116.65,116.64,9.15783697]
[1744357928812,44.63804015,116.66,116.64,9.15783697]
[1744357928813,44.63804015,116.66,116.64,17.73703697]
[1744357929013,36.06004015,116.66,116.65,21.20834808]
[1744357929214,32.54,116.68,116.65,21.20834808]
[1744357929418,32.54,116.68,116.67,9.15783697]
[1744357929618,32.54,116.68,116.67,21.20834808]
[1744357929810,8.5751,116.7,116.67,25.88848042]
[1744357930017,32.54,116.71,116.69,9.15783697]
[1744357930419,41.18012534,116.71,116.69,9.21353775]
[1744357930817,32.60592534,116.71,116.69,0.05570078]
[1744357931017,41.18032534,116.71,116.69,0.05570078]
[1744357931318,41.18032534,116.71,116.69,9.21353775]
[1744357933523,41.18032534,116.71,116.69,0.05570078]
[1744357933720,41.18032534,116.71,116.69,9.21353775]
[1744357934617,32.60592534,116.71,116.69,9.21353775]
[1744357934821,32.60592534,116.71,116.7,9.15783697]
[1744357936323,32.60592534,116.71,116.7,17.73263697]
[1744357937620,32.60592534,116.71,116.69,9.21353775]
[1744357937822,32.60592534,116.71,116.69,0.05570078]
[1744357938322,32.60592534,116.71,116.69,9.21353775]
[1744357939727,32.60592534,116.71,116.69,17.78883775]
[1744357940127,41.17992534,116.71,116.69,9.21353775]
[1744357944032,41.17992534,116.71,116.69,17.78883775]
[1744357944831,32.60592534,116.71,116.69,17.78883775]
[1744357949332,41.17992534,116.71,116.69,17.78883775]
[1744357950032,32.60592534,116.71,116.69,17.78883775]
[1744357950333,32.60592534,116.71,116.69,9.21353775]
[1744357950934,32.60592534,116.71,116.69,17.78783775]
[1744357952331,32.60592534,116.71,116.7,17.73173697]
[1744357956039,0.06592534,116.71,116.7,17.73173697]
[1744357965437,32.26592534,116.71,116.69,0.05570078]
[1744357965642,32.26592534,116.71,116.69,9.21353775]
[1744357966049,40.83942534,116.71,116.69,9.21353775]
[1744357966251,40.83942534,116.71,116.69,0.05570078]
[1744357966546,17.73173697,116.7,116.66,8.5765]
[1744357966849,9.15783697,116.7,116.66,17.73433697]
[1744357967050,8.5752,116.69,116.66,17.73433697]
[1744357967349,32.2,116.68,116.66,17.73433697]
[1744357967650,40.83393849,116.68,116.66,9.21570629]
[1744357968153,32.25823849,116.68,116.66,17.79240629]
[1744357969252,32.25823849,116.68,116.67,9.15783697]
[1744357969651,32.25823849,116.68,116.66,17.79240629]
[1744357970351,40.83363849,116.68,116.66,17.79240629]
[1744357970746,32.25823849,116.68,116.66,17.79240629]
[1744357970948,32.25823849,116.68,116.66,9.21570629]
[1744357971452,32.25823849,116.68,116.67,3.90901174]
[1744357972551,40.83363849,116.68,116.67,3.90901174]
[1744357972760,40.83363849,116.68,116.66,9.21570629]
[1744357975167,8.5761,116.67,116.66,0.05786932]
[1744357976557,17.73393697,116.67,116.66,0.05786932]
[1744357976758,9.15783697,116.67,116.63,9.15783697]
[1744357976962,9.15783697,116.66,116.64,3.91133629]
[1744357977163,32.2,116.65,116.63,9.15783697]
[1744357977363,40.7777,116.65,116.64,3.91032781]
[1744357977562,32.2,116.65,116.64,13.06816478]
[1744357977767,32.2,116.65,116.64,21.25090971]
[1744357978457,32.2,116.65,116.64,29.82920971]
[1744357978859,0.06438993,116.66,116.64,29.82920971]
[1744357979062,0.06438993,116.66,116.65,29.82850971]
[1744357979261,32.22,116.68,116.65,21.25090971]
[1744357979460,32.22,116.68,116.67,9.15783697]
[1744357979765,32.22,116.68,116.67,21.64426478]
[1744357980168,32.22,116.68,116.67,29.81908782]
[1744357980568,32.22,116.68,116.67,29.81857198]
[1744357980769,32.22,116.75,116.67,21.24247198]
[1744357981067,32.22,116.75,116.72,9.15783697]
[1744357981256,32.22,116.75,116.73,9.15783697]
[1744357981859,32.22,116.75,116.74,9.15783697]
[1744357982068,32.28065103,116.75,116.74,9.15783697]
[1744357982270,40.85085103,116.75,116.74,9.15783697]
[1744357982573,40.85085103,116.75,116.73,0.05643357]
[1744357982871,40.85085103,116.75,116.74,9.15783697]
[1744357984174,40.85085103,116.75,116.73,9.21427054]
[1744357984772,32.28065103,116.75,116.73,0.05643357]
[1744357984967,32.28065103,116.75,116.73,9.21427054]
[1744357987173,40.85155103,116.75,116.73,0.05643357]
[1744357987373,40.85155103,116.75,116.73,9.21427054]
[1744357988469,40.85155103,116.75,116.73,0.05643357]
[1744357988670,40.85155103,116.75,116.73,9.21427054]
[1744357989875,32.28065103,116.75,116.73,17.78587054]
[1744357990173,32.28065103,116.75,116.74,9.15783697]
[1744357990675,40.85085103,116.75,116.74,9.15783697]
[1744357990870,679.06,116.8,116.74,17.30825275]
[1744357991071,8.5662,116.81,116.79,9.15783697]
[1744357991272,32.32,116.82,116.8,9.15783697]
[1744357991474,32.32,116.82,116.74,32.32]
[1744357991773,32.32,116.82,116.79,9.15783697]
[1744357992075,8.5678,116.79,116.75,15.2111]
[1744357992270,40.8878,116.79,116.77,9.15783697]
[1744357992469,32.32,116.79,116.77,9.15783697]
[1744357992670,32.37544153,116.79,116.77,9.22109699]
[1744357993277,32.37544153,116.79,116.78,9.15783697]
[1744357994077,32.37544153,116.79,116.77,71.22109699]
[1744357995976,32.37544153,116.79,116.77,9.22109699]
[1744357996678,32.37544153,116.79,116.78,9.15783697]
[1744357997578,32.37544153,116.79,116.77,0.06326002]
[1744357997778,32.37544153,116.79,116.77,9.22109699]
[1744357997982,40.94314153,116.79,116.77,9.22109699]
[1744358002080,40.94314153,116.79,116.77,0.06326002]
[1744358003086,40.94314153,116.79,116.77,9.22109699]
[1744358005586,8.568,116.78,116.77,0.06326002]
[1744358015794,9.15783697,116.78,116.72,6.5449]
[1744358015999,9.15783697,116.77,116.73,9.15783697]
[1744358016194,32.3,116.76,116.73,9.15783697]
[1744358016395,41.45783697,116.76,116.7,1.49061938]
[1744358016594,41.45783697,116.76,116.72,9.15783697]
[1744358016789,41.45783697,116.76,116.72,17.72993697]
[1744358016996,8.62461595,116.75,116.73,0.062751]
[1744358018495,8.571,116.74,116.73,0.062751]
[1744358018897,17.72883697,116.74,116.73,0.062751]
[1744358020199,8.5725,116.72,116.66,6.3702]
[1744358020400,8.5725,116.72,116.69,9.15783697]
[1744358020401,40.7325,116.72,116.69,9.15783697]
[1744358021199,40.7325,116.72,116.69,17.73203697]
[1744358021403,40.79394627,116.72,116.69,17.79527374]
[1744358021798,40.79394627,116.72,116.69,9.22107374]
[1744358021998,8.5734,116.71,116.69,9.22107374]
[1744358022802,8.5734,116.71,116.69,17.79567374]
[1744358023201,32.22144627,116.72,116.7,9.15783697]
[1744358023397,32.22144627,116.72,116.7,17.73163697]
[1744358023596,32.22144627,116.72,116.69,9.22107374]
[1744358023897,41.37928324,116.72,116.69,9.22107374]
[1744358024200,41.37928324,116.72,116.69,0.06323677]
[1744358024596,8.5737,116.71,116.69,9.22107374]
[1744358024795,41.37928324,116.72,116.69,0.06323677]
[1744358025095,8.5732,116.71,116.69,0.06323677]
[1744358025400,41.37928324,116.72,116.69,0.06323677]
[1744358025702,8.5732,116.71,116.69,0.06323677]
[1744358025906,41.37928324,116.72,116.69,0.06323677]
[1744358026498,8.5739,116.7,116.69,0.06323677]
[1744358027801,8.5756,116.68,116.63,1.4915138]
[1744358027999,40.7556,116.68,116.66,9.15783697]
[1744358029006,40.8209006,116.68,116.66,9.22298879]
[1744358029701,32.2453006,116.68,116.66,9.22298879]
[1744358029903,32.2453006,116.68,116.66,17.79978879]
[1744358030102,32.2453006,116.68,116.67,9.15783697]
[1744358030705,0.0653006,116.68,116.67,9.15783697]
[1744358030904,0.0653006,116.68,116.67,17.73393697]
[1744358039710,0.0653006,116.68,116.67,21.61303984]
[1744358041609,32.18,116.72,116.69,8.5745]
[1744358041807,32.18,116.72,116.69,17.73233697]
[1744358042007,32.18,116.72,116.7,9.15783697]
[1744358042212,32.18,116.72,116.7,17.73163697]
[1744358042418,32.18,116.72,116.71,9.15783697]
[1744358042913,32.18,116.72,116.7,17.79229621]
[1744358043412,32.18,116.72,116.71,17.73103697]
[1744358044210,0.05837216,116.73,116.72,8.5724]
[1744358044406,0.05837216,116.73,116.72,17.73023697]
[1744358053016,0.05837216,116.73,116.71,17.73053697]
[1744358053914,0.05837216,116.73,116.72,8.5724]
[1744358054415,0.05837216,116.73,116.72,17.73023697]
[1744358056118,0.05837216,116.73,116.72,21.62180166]
[1744358057021,0.05837216,116.73,116.72,17.73023697]
[1744358057520,0.05837216,116.73,116.72,21.62405619]
[1744358058823,0.05837216,116.73,116.72,29.77433505]
[1744358059724,0.05837216,116.73,116.72,21.62405619]
[1744358060023,0.05837216,116.73,116.72,13.05165619]
[1744358060418,0.05837216,116.73,116.72,21.21416011]
[1744358060615,0.05837216,116.73,116.72,9.15783697]
[1744358061025,0.05837216,116.73,116.72,13.05799252]
[1744358061322,0.05837216,116.73,116.72,21.22130268]
[1744358062418,0.05837216,116.73,116.72,29.79370268]
[1744358065021,32.18,116.75,116.72,29.79370268]
[1744358065218,32.06,116.78,116.74,17.72883697]
[1744358065418,32.06,116.78,116.75,9.15783697]
[1744358065619,8.5692,116.77,116.75,9.15783697]
[1744358066425,8.62355259,116.77,116.75,9.21768398]
[1744358066722,8.62355259,116.77,116.75,0.05984701]
[1744358068823,8.5695,116.76,116.75,0.05984701]
[1744358069726,8.62355259,116.77,116.75,0.05984701]
[1744358069927,8.62355259,116.77,116.75,9.21768398]
[1744358070122,8.62355259,116.77,116.75,0.05984701]
[1744358072832,8.5695,116.76,116.75,0.05984701]
[1744358074531,8.5712,116.74,116.69,4.4076]
[1744358074831,40.6312,116.74,116.71,9.15783697]
[1744358075031,40.6312,116.74,116.72,12.05898004]
[1744358075232,40.6312,116.74,116.71,17.73063697]
[1744358075529,40.6312,116.74,116.72,21.21969033]
[1744358075719,40.6312,116.74,116.72,9.15783697]
[1744358075720,40.68843137,116.74,116.72,9.15783697]
[1744358079133,40.68843137,116.74,116.73,3.90171784]
[1744358081434,40.68843137,116.74,116.73,3.90327083]
[1744358083023,0.05723137,116.74,116.73,21.6328078]
[1744358083223,32.06,116.78,116.73,21.2253873]
[1744358083427,32.06,116.78,116.77,9.15783697]
[1744358084038,32.06,116.78,116.77,13.0601031]
[1744358085038,32.06,116.78,116.77,13.0597419]
[1744358085338,32.06,116.78,116.77,9.15783697]
[1744358085729,32.06,116.78,116.77,13.06064819]
[1744358086538,32.06,116.78,116.77,21.62944819]
[1744358087031,32.06,116.78,116.77,13.06064819]
[1744358087836,32.06,116.78,116.77,21.22970904]
[1744358088134,32.06,116.78,116.77,12.07187207]
[1744358088437,32.06,116.78,116.77,3.90281122]
[1744358088638,32.06,116.78,116.77,3.90307711]
[1744358090643,0.05710656,116.79,116.77,21.62931408]
[1744358090838,0.05710656,116.79,116.77,17.72623697]
[1744358092237,0.05710656,116.79,116.77,9.15783697]
[1744358092434,8.62450656,116.79,116.77,9.15783697]
[1744358093250,8.62450656,116.79,116.76,17.78966301]
[1744358093435,8.62450656,116.79,116.77,3.90032491]
[1744358093635,8.62450656,116.79,116.76,17.78966301]
[1744358093930,8.62450656,116.79,116.77,3.89985759]
[1744358094135,8.62450656,116.79,116.76,17.78966301]
[1744358094335,8.62450656,116.79,116.77,3.89994251]
[1744358094531,8.62450656,116.79,116.76,17.78966301]